Cogmind - Beta 10.2 @@@ ROGUE MODE // 2022.03.14 @ 23:36:16 Player: Yanche Result: Destroyed by S-10 Pest with Light Assault Rifle Performance ------------- Evolutions (0) 0 Regions Visited (2) 400 Robots Destroyed (20) 100 Value Destroyed (546) 546 Prototype IDs (4) 80 Alien Tech Used (0) 0 Bonus (0) 0 TOTAL SCORE: 1126 Bonus ------- None Cogmind --------- Core Integrity 0/250 Matter 300/300 Energy 95/100 System Corruption 0% Temperature Cool (0) Movement Walking (120) Location -10/Mines Parts ------- > --- POWER (1) -------- (None) > --- PROPULSION (2) --- Aluminum Leg > --- UTILITY (2) ------ Small Storage Unit > --- WEAPON (2) ------- Makeshift Sword > --- INVENTORY (6) ---- Heat Sink Utility Shielding Light Assault Rifle Light Assault Rifle Grenade Launcher Peak State ------------ > --- POWER ------------ Light Nuclear Core > --- PROPULSION ------- Wheel Compact Wheel > --- UTILITY ---------- Improved Heat Sink Small Storage Unit > --- WEAPON ----------- Light Assault Rifle Makeshift Sword > --- INVENTORY -------- Utility Shielding EM Pulse Gun Small Laser Grenade Launcher Mining Laser [Rating: 14] Favorites ----------- Power Light Ion Engine Engine Light Ion Engine Power Core Light Nuclear Core Propulsion Compact Wheel Leg Aluminum Leg Wheel Compact Wheel Utility Small Storage Unit Device Improved Heat Sink Storage Small Storage Unit Weapon Light Assault Rifle Energy Gun Small Laser Ballistic Gun Light Assault Rifle Special Weapon Mining Laser Slashing Weapon Makeshift Sword Build | -11 -10 -10 ------- Run | Scr Mat Min Slots Evolved . | . . . Power . | . . . Propulsion . | . . . Utility . | . . . Weapon . | . . . Parts Attached 18 | 6 4 8 Power 2 | 1 . 1 Engine 1 | 1 . . Core 1 | . . 1 Reactor . | . . . Propulsion 5 | 2 1 2 Treads . | . . . Leg 2 | . . 2 Wheel 3 | 2 1 . Hover . | . . . Flight . | . . . Utility 2 | 1 1 . Device 1 | . 1 . Storage 1 | 1 . . Processor . | . . . Hackware . | . . . Protection . | . . . Artifact . | . . . Weapon 9 | 2 2 5 Energy Gun 4 | 1 1 2 Energy Cannon . | . . . Ballistic Gun 2 | 1 1 . Ballistic Cannon . | . . . Launcher . | . . . Special Weapon 1 | . . 1 Impact Weapon . | . . . Slashing Weapon 2 | . . 2 Piercing Weapon . | . . . Special Melee Weapon . | . . . Unidentified Prototypes . | . . . Parts Lost 11 | . 1 10 Power 2 | . . 2 Propulsion 3 | . . 3 Utility 1 | . . 1 Weapon 5 | . 1 4 Highest Loss Streak 8 | . 1 8 Average Slot Usage (%) 75 | . 90 62 Engine 7 | . 14 1 Leg 5 | . . 9 Wheel 15 | . 28 6 Device 4 | . 5 2 Storage 14 | . 14 14 Energy Gun 7 | . 13 2 Ballistic Gun 7 | . 14 3 Special Weapon 5 | . . 9 Slashing Weapon 6 | . . 11 Naked Turns . | . . . Heaviest Build 13 | 9 10 13 Greatest Support 26 | 26 26 26 Greatest Overweight (x) 2 | . . 2 Average Overweight (x) . | . . . Largest Inventory Capacity 6 | 6 6 6 Average Capacity 5 | 5 6 6 Most Carried 6 | 2 6 6 Average Carried 4 | 1 4 4 Final Capacity 6 | 6 6 6 Final Carried 6 | 2 6 5 Class Distribution -------------------- 100% | Mutant Dominant Class ---------------- Mutant | -10/Materials Mutant | -10/Mines Resources | -11 -10 -10 ----------- Run | Scr Mat Min Matter Collected 395 | 253 69 73 Remotely . | . . . Salvage Created 646 | . 296 350 Parts 45 | . 30 15 Haulers Intercepted . | . . . Recyclers Shooed 2 | . 2 . Parts Field Recycled . | . . . Retrieved Matter . | . . . Parts Self-Destructed . | . . . Prevented . | . . . Kills | -11 -10 -10 ------- Run | Scr Mat Min Combat Hostiles Destroyed 19 | . 9 10 Melee 5 | . . 5 Guns 14 | . 9 5 Classes Destroyed 3 | . 3 . Watcher 1 | . 1 . Swarmer 7 | . 3 4 Grunt 12 | . 6 6 Best Kill Streak 7 | . 3 7 Combat Bots Only 7 | . 3 7 Max Kills in Single Turn 1 | . 1 1 Gunslinging . | . . . Exploded . | . . . Melee 1 | . . 1 Uniques/NPCs Destroyed . | . . . Combat | -11 -10 -10 -------- Run | Scr Mat Min Damage Taken 974 | . 263 711 Core 255 | . 51 204 Absorbed by Shields . | . . . Core Remaining (%) 100 | 100 . . Volleys Fired 66 | . 44 22 Largest 2 | . 2 2 Hottest 100 | . 60 100 Shots Fired 113 | . 82 31 Gun 112 | . 82 30 Cannon . | . . . Launcher . | . . . Special 1 | . . 1 Kinetic 55 | . 44 11 Thermal 43 | . 38 5 Explosive . | . . . Electromagnetic 15 | . . 15 Robot Hit Streak 13 | . 13 9 Robot Miss Streak 3 | . 3 1 Penetration Max . | . . . Secondary Targets 3 | . 2 1 Max Gunslinging Chain 1 | . 1 1 Shots Hit Robots 97 | . 55 42 Core Hits 40 | . 25 15 Critical Hits 1 | . . 1 Critical Kills 1 | . . 1 Critical Parts Destroyed . | . . . Melee Attacks 28 | . . 28 Impact . | . . . Slashing 28 | . . 28 Piercing . | . . . Sneak Attacks 1 | . . 1 Combat Hostiles . | . . . Follow-up Attacks . | . . . Damage Inflicted 1539 | . 523 1016 Guns 808 | . 523 285 Cannons . | . . . Explosions . | . . . Melee 707 | . . 707 Ramming . | . . . Kinetic 273 | . 195 78 Thermal 399 | . 328 71 Explosive . | . . . Electromagnetic 160 | . . 160 Impact . | . . . Slashing 707 | . . 707 Piercing . | . . . Highest Corruption . | . . . Average Corruption . | . . . Corruption Purged . | . . . Overload Shots . | . . . Overflow Damage 112 | . . 112 Projectiles . | . . . Explosions . | . . . Melee 112 | . . 112 Knockbacks . | . . . Impact . | . . . Kinetic . | . . . Secondary . | . . . Self-Inflicted Damage . | . . . Shots . | . . . Rammed 1 | 1 . . Targets Rammed 1 | 1 . . Kicked . | . . . Crushed . | . . . Highest Temperature 64 | . 64 26 Average Temperature 19 | . 24 8 Received Heat Transfer 372 | . 108 264 Siege Activations . | . . . Robots Corrupted . | . . . Combat Hostiles . | . . . Parts Fried . | . . . Impact Corruptions . | . . . Robots Melted . | . . . Combat Hostiles . | . . . Parts Melted . | . . . Heat Transferred 900 | . 750 150 Parts Sabotaged . | . . . Parts Stolen . | . . . Parts Stripped . | . . . Power Chain Reactions . | . . . Missiles Intercepted . | . . . Alert | -11 -10 -10 ------- Run | Scr Mat Min Peak Influence 185 | . 167 185 Initial . | . . . Average 79 | . 68 95 Maximum Alert Level . | . . . Low Security (%) 100 | 100 100 100 Level 1 . | . . . Level 2 . | . . . Level 3 . | . . . Level 4 . | . . . Level 5 . | . . . High Security . | . . . Max Security . | . . . Squads Dispatched 4 | . 4 . Investigation 2 | . 2 . Extermination . | . . . Reinforcement 2 | . 2 . Assault . | . . . Garrison . | . . . Intercept . | . . . Construction Impeded . | . . . Haulers Reinforced . | . . . Stealth | -11 -10 -10 --------- Run | Scr Mat Min Distress Signals 1 | . 1 . Communications Jammed . | . . . Distress Signals . | . . . Times Spotted 38 | . 23 15 Peak Tracking Total 5 | . 5 5 Tactical Retreats 3 | . . 3 Traps | -11 -10 -10 ------- Run | Scr Mat Min Traps Triggered 2 | . 2 . Indirectly . | . . . Trap Hack Attempts . | . . . Triggered . | . . . Disarmed . | . . . Reprogrammed . | . . . Reused . | . . . Traps Extracted . | . . . Installed . | . . . Triggered . | . . . Machines | -11 -10 -10 ---------- Run | Scr Mat Min Machines Disabled . | . . . Max in Single Turn . | . . . Machines Sabotaged . | . . . Garrisons Compromised . | . . . Overloaded Fab Kills . | . . . Fab Network Shutdowns . | . . . Hacking | -11 -10 -10 --------- Run | Scr Mat Min Machines Accessed 3 | . 3 . Terminals 3 | . 3 . Fabricators . | . . . Repair Stations . | . . . Recycling Units . | . . . Scanalyzers . | . . . Garrison Access . | . . . Total Hacks 12 | . 12 . Successful 8 | . 8 . Failed 4 | . 4 . Catastrophic 1 | . 1 . Database Lockouts . | . . . Manual . | . . . Terminals 12 | . 12 . Fabricators . | . . . Repair Stations . | . . . Recycling Units . | . . . Scanalyzers . | . . . Garrison Access . | . . . Terminal Hacks 8 | . 8 . Prototype ID Bank 2 | . 2 . Emergency Access Points 2 | . 2 . Unreport Threat 2 | . 2 . Locate Traps 1 | . 1 . Recall Investigation 1 | . 1 . Fabricator Hacks . | . . . Repair Station Hacks . | . . . Recycling Unit Hacks . | . . . Scanalyzer . | . . . Garrison Access Hacks . | . . . Unauthorized Hacks . | . . . Terminals . | . . . Fabricators . | . . . Repair Stations . | . . . Recycling Units . | . . . Scanalyzers . | . . . Garrison Access . | . . . Data Cores Recovered . | . . . Used . | . . . Hacking Detections 2 | . 2 . Full Trace Events 1 | . 1 . Feedback Events . | . . . Feedback Blocked . | . . . Robot Schematics Acquired . | . . . Robots Built . | . . . Matter . | . . . Time . | . . . Total Robot Build Rating . | . . . Part Schematics Acquired . | . . . Parts Built . | . . . Matter . | . . . Time . | . . . Total Part Build Rating . | . . . Parts Repaired . | . . . Time . | . . . Parts Recycled . | . . . Recycled Matter . | . . . Retrieved Matter . | . . . Retrieved Components . | . . . Parts Scanalyzed . | . . . Part Schematics Acquired . | . . . Parts Damaged . | . . . Bothacking | -11 -10 -10 ------------ Run | Scr Mat Min Used RIF Installer . | . . . Robots Hacked . | . . . Non-combat . | . . . Combat . | . . . Robot Hacks Applied . | . . . Relay Couplers Released . | . . . Robots Rewired . | . . . Allies Hacked . | . . . Hacks Repelled . | . . . Allies | -11 -10 -10 -------- Run | Scr Mat Min Total Allies . | . . . Largest Group . | . . . Highest-Rated Group . | . . . Highest-Rated Ally . | . . . Total Orders . | . . . Ally Attacks . | . . . Total Damage . | . . . Kills . | . . . Allies Corrupted . | . . . Allies Melted . | . . . Intel | -11 -10 -10 ------- Run | Scr Mat Min Robot Analysis Total . | . . . Derelict Logs Recovered . | . . . Drone Launches . | . . . Drone Recoveries . | . . . Exploration | -11 -10 -10 ------------- Run | Scr Mat Min Turns Passed 954 | 52 402 500 Spaces Moved 626 | 47 268 311 Core 59 | 6 . 53 Treads . | . . . Legs 192 | . . 192 Wheels 375 | 41 268 66 Hover . | . . . Flight . | . . . Fastest Speed 50 | 50 90 90 Average Speed 103 | 85 90 118 Slowest Speed 150 | 100 90 150 Overloaded Moves . | . . . Propulsion Burnouts . | . . . Robots Hopped . | . . . Cave-ins Triggered . | . . . Exploration Rate (%) 30 | 4 47 41 Regions Visited 2 Branch Regions 1 Pre-discovered Areas 1 | . . 1 Known Exits Taken . | . . . Unknown Exits Taken 2 | 1 1 . Scrap Searched . | . . . Spaces Dug . | . . . Terrain Destroyed . | . . . Melee . | . . . Projectile . | . . . AOE . | . . . Terrain Rammed . | . . . Walls Destroyed . | . . . Machines Disabled . | . . . Actions | -11 -10 -10 --------- Run | Scr Mat Min Total 797 | 56 356 385 Wait 40 | . 29 11 Move 625 | 47 267 311 Hop . | . . . Pick Up 15 | 3 8 4 Fast Attach 8 | 5 1 2 Attach 6 | 1 1 4 Detach . | . . . Swap 4 | . 2 2 Drop 5 | . 4 1 Fire 66 | . 44 22 Melee 28 | . . 28 Ram . | . . . Kick . | . . . Crush . | . . . Escape Stasis . | . . . Rewire . | . . . Trap . | . . . Miscellaneous . | . . . Route ------- -11/Scrapyard -10/Materials -10/Mines (discovered 1 exit: [*Mat]) History --------- Turn | Location | Event 18 | -11/Scrapyard | Discovered new exit (range 16) 53 | -11/Scrapyard | Entered Materials 306 | -10/Materials | Build established: Mutant 438 | -10/Materials | Discovered new exit (range 12) 455 | -10/Materials | Entered Mines 456 | -10/Mines | Learned location of Storage (-7) 476 | -10/Mines | Met a Derelict bent on vengeance 486 | -10/Mines | A weapon hastily lodged in a ceiling crevice suddenly fell to the ground 574 | -10/Mines | Core integrity fell below 50% 597 | -10/Mines | Destroyed 7 combat bots 599 | -10/Mines | Discovered new exit (range 7) 618 | -10/Mines | Lost 8 parts (2p2n1u3w) 822 | -10/Mines | Core integrity fell below 20% 955 | -10/Mines | Destroyed by S-10 Pest with Light Assault Rifle Last Messages --------------- G-34 Mercenary destroyed. K-01 Serf collects debris. Acquired Lgt. Assault Rifle. Acquired Heat Sink. Acquired Aluminum Leg. Acquired 10 matter. K-01 Serf collects debris. Destroyed Lgt. Nuclear Core. G-47 Trooper misfires. Destroyed Aluminum Leg. Destroyed Particle Gun. G-47 Trooper suffers critical hit. G-47 Trooper destroyed. Acquired Aluminum Leg. Acquired 10 matter. S-10 Pest destroyed. Destroyed Lgt. Ion Engine. Aluminum Leg destroyed. Mining Laser destroyed. S-10 Pest destroyed. Map ----- +----------------------------------------------------+ | | | | | | | | | | | ?????????????????????????????????????????????????? | | ?????????????????????????????????????????????????? | | ?????????????????????????????????????????????????? | | ?????????????????????????????????????????????????? | | ?????????????????????????????????????????????????? | | ??????????????????????????# ?????????????????????? | | ?????????????????????????# ??????????????????? | | ????????????????????????? ????????????????? | | ????????????????????????? ?????????????????? | | ????????????????????????? ??????????????????? | | ????????????????????????# ??????????????????? | | ????????????????????#### ???????????????????? | | ????????????????????? ????????????????????? | | ?????????????????????# ?????????????????????? | | ?????????????????????# ?????????????????????? | | ????????????????????## ??????????????????????? | | ????????????????????# ???????????????????????? | | ????????????????????# #???????????????????????? | | ????????????????????# ##?????????##???????????? | | ???????????????????## #####=%* #?????????? | | ???????????????????# @%= #???????????????? | | ???????????????????# s#### #???????????????? | | ???????????????????# ##?????????????????????? | | ##########????????## ##??????????????????????? | | #????????# #???????????????????????? | | #?????#### ##??????????????????????? | | #?????# #??????????????????????? | | """ """ #?????# ## #??????????????????????? | | """ """ #?????# ### ##??????????????????????? | | """ """ #?????# #?######???????????????????????? | | """ """ #?????# #??????????????????????????????? | | #?????# #??????????????????????????????? | | ## #######?????# ####???????????????????????????? | | ?# #???????????# #########???????????????????? | | ?# #####????#### #???????????????????? | | ?# ###### #???????????????????? | | ?# """## ####### #???????????????????? | | ?# """## ## ######???????????????????????????? | | ?# """## ### ##????????????????????????????????? | | ?# ## #?####???????????? #???????????????????? | | ?# """## #????????????????#$##??????????????????? | | ?# """## #???????????????# ##?????????????????? | | ?# """## #??????????????# ##????????????????? | | ?# ## #####??????#### #????????????????? | | ?# ## #?????## #????????????????? | +----------------------------------------------------+ Best States ------------- Heat Dissipation 39 Energy Generation 14 Energy Capacity 160 Matter Stores 300 Matter Capacity 300 Sight Range 16 Terrain Scan Density 10 Evasion (%) 42 Item Schematics ----------------- None Robot Schematics ------------------ None Fabricated ------------ Nothing Alien Tech Used ----------------- None Achievements -------------- None Challenges ------------ None Game ------ Seed TiamatMiniMapper Manual? 0 Play Time 00:14:27 Cumulative 60.3 hours Start 2022.03.14 @ 23:26:05 End 2022.03.14 @ 23:36:16 Sessions 1 Manual Loads 0 Difficulty Rogue Special Mode None Game No. 52 Rogue 42 Adventurer 0 Explorer 10 Win Type - Total 0 Types 0/0/0/0/0/0/0/0/0 Lore% 45 Gallery% 42 Achievement% 30 Wizard Run 0 Options --------- ASCII 0 Keyboard 0 Movement Numpad Keybinds 0 Fullscreen 1 Font 18/SmallcapsGlow Map View 76x50 Tactical HUD 0 Map Filters NONE Filters NONE Steam 1 RUN: 8b397246-a9e3-43b3-954f-e41fceab1a5a